fUSD/lending_fUSD_20250407
["ID","MTS","AMOUNT","RATE_DAILY","PERIOD"]
[357378143,1744023075790,-535.69427639,0.00052602,120]
[357378144,1744023075812,-155.05572361,0.00052602,120]
[357378145,1744023075822,-500.0,0.00052602,120]
[357378146,1744023075834,-500.0,0.00052602,120]
[357378147,1744023075843,-685.93,0.00052602,120]
[357378148,1744023075853,-561.99,0.00052602,120]
[357378149,1744023075863,-743.24,0.00052602,120]
[357378150,1744023075875,-500.0,0.00052602,120]
[357378151,1744023075885,-500.0,0.00052602,120]
[357378152,1744023075896,-500.0,0.00052602,120]
[357378153,1744023075906,-500.0,0.00052602,120]
[357378154,1744023075916,-500.0,0.00052602,120]
[357378155,1744023075926,-719.92,0.00052602,120]
[357378156,1744023075937,-549.77,0.00052602,120]
[357378157,1744023075947,-500.0,0.00052602,120]
[357378158,1744023075958,-781.95,0.00052602,120]
[357378159,1744023075968,-457.32297899,0.00052602,120]
[357378160,1744023075979,-826.61,0.00052602,120]
[357378161,1744023075989,-500.0,0.00052602,120]
[357378162,1744023075999,-500.0,0.00052602,120]
[357378163,1744023076009,-521.49625317,0.00052602,120]
[357378164,1744023076019,-500.0,0.00052602,120]
[357378165,1744023076030,-500.0,0.00052602,120]
[357378166,1744023076040,-500.0,0.00052602,120]
[357378167,1744023076052,-500.0,0.00052602,120]
[357378168,1744023076062,-500.0,0.00052602,120]
[357378169,1744023076072,-1017.91,0.00052602,120]
[357378170,1744023076085,-390.42197327,0.00052602,120]
[357378171,1744023076095,-702.54,0.00052602,120]
[357378172,1744023076106,-500.0,0.00052602,120]
[357378173,1744023076314,-1320.02,0.00052602,120]
[357378174,1744023076340,-500.0,0.00052602,120]
[357378175,1744023076349,-653.59,0.00052602,120]
[357378176,1744023076359,-111949.85,0.00052602,7]
[357378177,1744023076368,-500.0,0.00052602,120]
[357378178,1744023076377,-500.0,0.00052602,120]
[357378179,1744023076386,-500.0,0.00052602,120]
[357378180,1744023076396,-1302.73,0.00052602,120]
[357378181,1744023076406,-981.13,0.00052602,120]
[357378182,1744023076415,-500.0,0.00052602,120]
[357378183,1744023076424,-13506.43,0.00052602,120]
[357378184,1744023076434,-500.0,0.00052602,120]
[357378185,1744023076443,-500.0,0.00052602,120]
[357378186,1744023076453,-1221.52,0.00052602,120]
[357378187,1744023076462,-500.0,0.00052602,120]
[357378188,1744023076471,-1073.31,0.00052602,120]
[357378189,1744023076481,-500.0,0.00052602,120]
[357378190,1744023076491,-526.32,0.00052602,120]
[357378191,1744023076500,-500.0,0.00052602,120]
[357378192,1744023076509,-500.0,0.00052602,120]
[357378193,1744023076519,-1927.85,0.00052602,120]
[357378194,1744023076529,-1189.09,0.00052602,120]
[357378195,1744023076539,-500.0,0.00052602,120]
[357378196,1744023076550,-500.0,0.00052602,120]
[357378197,1744023076559,-1387.98,0.00052602,120]
[357378198,1744023076570,-3865.46,0.00052602,120]
[357378199,1744023076579,-500.0,0.00052602,120]
[357378200,1744023076590,-515.89,0.00052602,120]
[357378201,1744023076599,-500.0,0.00052602,120]
[357378202,1744023076609,-500.0,0.00052602,120]
[357378203,1744023076618,-500.0,0.00052602,120]
[357378204,1744023076628,-500.0,0.00052602,120]
[357378205,1744023076637,-1447.88,0.00052602,120]
[357378206,1744023076647,-641.84874618,0.00052602,120]
[357378207,1744023076656,-500.0,0.00052602,120]
[357378208,1744023076666,-1786.21,0.00052602,120]
[357378209,1744023076676,-536.69,0.00052602,120]
[357378210,1744023076688,-1781.79,0.00052602,100]
[357378211,1744023076697,-732.06,0.00052602,120]
[357378212,1744023076707,-500.0,0.00052602,120]
[357378213,1744023076717,-500.0,0.00052602,120]
[357378214,1744023076726,-500.0,0.00052602,120]
[357378215,1744023076736,-2754.6,0.00052602,120]
[357378216,1744023076746,-500.0,0.00052602,120]
[357378217,1744023076755,-595.94,0.00052602,120]
[357378218,1744023076765,-1297.31,0.00052602,2]
[357378219,1744023076775,-1933.85,0.00052602,120]
[357378220,1744023076785,-500.0,0.00052602,120]
[357378221,1744023076795,-541.98674947,0.00052602,120]
[357378222,1744023076808,-200.0,0.00052602,7]
[357378223,1744023076818,-1029.49,0.00052602,120]
[357378224,1744023076827,-500.0,0.00052602,120]
[357378225,1744023076838,-500.0,0.00052602,120]
[357378226,1744023076847,-351.68044288,0.00052602,120]
[357378227,1744023076857,-500.0,0.00052602,120]
[357378228,1744023076867,-597.57,0.00052602,120]
[357378229,1744023076879,-500.0,0.00052602,120]
[357378230,1744023076891,-593.95791439,0.00052602,120]
[357378231,1744023076902,-1732.78,0.00052602,120]
[357378232,1744023076912,-1319.4,0.00052602,120]
[357378233,1744023076922,-1258.11,0.00052602,120]
[357378234,1744023076932,-500.0,0.00052602,120]
[357378235,1744023076941,-500.0,0.00052602,120]
[357378236,1744023076951,-500.0,0.00052602,120]
[357378237,1744023076960,-500.0,0.00052602,120]
[357378238,1744023076971,-500.0,0.00052602,120]
[357378239,1744023076980,-835.36,0.00052602,120]
[357378240,1744023076990,-576.98645758,0.00052602,120]
[357378241,1744023077001,-500.0,0.00052602,120]
[357378242,1744023077012,-500.0,0.00052602,120]
[357378243,1744023077022,-500.0,0.00052602,120]
[357378244,1744023077031,-500.0,0.00052602,120]
[357378245,1744023077043,-963.3,0.00052602,120]
[357378246,1744023077053,-500.0,0.00052602,120]
[357378247,1744023077063,-585.2,0.00052602,120]
[357378248,1744023077073,-675.5,0.00052602,120]
[357378249,1744023077085,-646.89,0.00052602,120]
[357378250,1744023077095,-1608.07,0.00052602,120]
[357378251,1744023077105,-641.84,0.00052602,120]
[357378252,1744023077114,-500.0,0.00052602,120]
[357378253,1744023077124,-2591.89,0.00052602,120]
[357378254,1744023077133,-839.69,0.00052602,30]
[357378255,1744023077142,-4420.92,0.00052602,120]
[357378256,1744023077152,-1773.29,0.00052602,120]
[357378257,1744023077161,-500.0,0.00052602,120]
[357378258,1744023077171,-500.0,0.00052602,120]
[357378259,1744023077180,-500.0,0.00052602,120]
[357378260,1744023077190,-445.85,0.00052602,120]
[357378261,1744023077199,-500.0,0.00052602,120]
[357378262,1744023077210,-523.49527216,0.00052602,120]
[357378263,1744023077219,-799.0,0.00052602,120]
[357378264,1744023077229,-685.79,0.00052602,120]
[357378265,1744023077239,-2093.1,0.00052602,120]
[357378266,1744023077248,-690.21,0.00052602,120]
[357378267,1744023077258,-500.0,0.00052602,120]
[357378268,1744023077267,-989.16,0.00052602,120]
[357378269,1744023077277,-500.0,0.00052602,120]
[357378270,1744023077287,-500.0,0.00052602,120]
[357378271,1744023077296,-571.0610017,0.00052602,120]
[357378272,1744023077307,-500.0,0.00052602,120]
[357378273,1744023077317,-500.0,0.00052602,120]
[357378274,1744023077327,-856.43,0.00052602,120]
[357378275,1744023077340,-1233.75,0.00052602,120]
[357378276,1744023077350,-500.0,0.00052602,120]
[357378277,1744023077360,-500.0,0.00052602,120]
[357378278,1744023077370,-963.77,0.00052602,120]
[357378279,1744023077380,-500.0,0.00052602,120]
[357378280,1744023077390,-500.0,0.00052602,120]
[357378281,1744023077400,-814.82,0.00052602,120]
[357378282,1744023077410,-500.0,0.00052602,120]
[357378283,1744023077420,-500.0,0.00052602,120]
[357378284,1744023077429,-572.45,0.00052602,120]
[357378285,1744023077439,-850.99,0.00052602,120]
[357378286,1744023077449,-500.0,0.00052602,120]
[357378287,1744023077459,-834.45,0.00052602,120]
[357378288,1744023077469,-877.75,0.00052602,120]
[357378289,1744023077479,-500.0,0.00052602,120]
[357378290,1744023077488,-500.0,0.00052602,120]
[357378291,1744023077498,-553.15,0.00052602,120]
[357378292,1744023077508,-1339.14,0.00052602,120]
[357378293,1744023077518,-500.0,0.00052602,120]
[357378294,1744023077527,-500.0,0.00052602,120]
[357378295,1744023077537,-500.0,0.00052602,120]
[357378296,1744023077547,-565.6308587,0.00052602,120]
[357378297,1744023077557,-500.0,0.00052602,120]
[357378298,1744023077567,-500.0,0.00052602,120]
[357378299,1744023077578,-1519.64,0.00052602,120]
[357378300,1744023077590,-500.0,0.00052602,120]
[357378301,1744023077600,-500.0,0.00052602,120]
[357378302,1744023077609,-1000.0,0.00052602,120]
[357378303,1744023077618,-500.0,0.00052602,120]
[357378304,1744023077628,-500.0,0.00052602,120]
[357378305,1744023077638,-1045.34,0.00052602,120]
[357378306,1744023077648,-2000.0,0.00052602,30]
[357378307,1744023077658,-670.45,0.00052602,120]
[357378308,1744023077668,-500.0,0.00052602,120]
[357378309,1744023077678,-547.54500883,0.00052602,10]
[357378310,1744023077688,-500.0,0.00052602,120]
[357378311,1744023077698,-659.1,0.00052602,5]
[357378312,1744023077708,-500.0,0.00052602,120]
[357378313,1744023077718,-1558.87,0.00052602,120]
[357378314,1744023077727,-500.0,0.00052602,120]
[357378315,1744023077738,-1092.32,0.00052602,120]
[357378316,1744023077747,-667.16,0.00052602,120]
[357378317,1744023077757,-1041.78,0.00052602,120]
[357378318,1744023077767,-809.41,0.00052602,120]
[357378319,1744023077777,-500.0,0.00052602,120]
[357378320,1744023077789,-500.0,0.00052602,120]
[357378321,1744023077801,-500.0,0.00052602,120]
[357378322,1744023077811,-500.0,0.00052602,120]
[357378323,1744023077821,-500.0,0.00052602,120]
[357378324,1744023077832,-560.67,0.00052602,120]
[357378325,1744023077843,-645.62,0.00052602,120]
[357378326,1744023077854,-879.67,0.00052602,120]
[357378327,1744023077863,-500.0,0.00052602,120]
[357378328,1744023077872,-500.0,0.00052602,120]
[357378329,1744023077883,-500.0,0.00052602,2]
[357378330,1744023077893,-762.9,0.00052602,120]
[357378331,1744023077902,-500.0,0.00052602,120]
[357378332,1744023077911,-500.0,0.00052602,120]
[357378333,1744023077921,-570.66,0.00052602,120]
[357378334,1744023077931,-500.0,0.00052602,120]
[357378335,1744023077940,-500.0,0.00052602,120]
[357378336,1744023077949,-500.0,0.00052602,120]
[357378337,1744023077958,-938.08,0.00052602,120]
[357378338,1744023077967,-500.0,0.00052602,120]
[357378339,1744023077976,-500.0,0.00052602,120]
[357378340,1744023077986,-790.59,0.00052602,120]
[357378341,1744023077996,-500.0,0.00052602,120]
[357378342,1744023078006,-1570.59,0.00052602,120]
[357378343,1744023078015,-1043.73,0.00052602,120]
[357378344,1744023078024,-500.0,0.00052602,120]
[357378345,1744023078033,-642.8,0.00052602,120]
[357378346,1744023078043,-500.0,0.00052602,120]
[357378347,1744023078052,-500.0,0.00052602,120]
[357378348,1744023078062,-550.65,0.00052602,120]
[357378349,1744023078071,-514.24,0.00052602,120]
[357378350,1744023078081,-500.0,0.00052602,120]
[357378351,1744023078093,-500.0,0.00052602,120]
[357378352,1744023078103,-500.0,0.00052602,120]
[357378353,1744023078112,-1363.75,0.00052602,120]
[357378354,1744023078122,-500.0,0.00052602,120]
[357378355,1744023078133,-500.0,0.00052602,120]
[357378356,1744023078143,-2190.72,0.00052602,120]
[357378357,1744023078153,-500.0,0.00052602,120]
[357378358,1744023078164,-1853.66,0.00052602,120]
[357378359,1744023078174,-1033.91,0.00052602,120]
[357378360,1744023078185,-500.0,0.00052602,120]
[357378361,1744023078195,-649.55,0.00052602,120]
[357378362,1744023078206,-570.35,0.00052602,120]
[357378363,1744023078215,-500.0,0.00052602,120]
[357378364,1744023078226,-1334.19,0.00052602,120]
[357378365,1744023078235,-995.01,0.00052602,120]
[357378366,1744023078246,-500.0,0.00052602,120]
[357378367,1744023078256,-500.0,0.00052602,120]
[357378368,1744023078265,-500.0,0.00052602,120]
[357378369,1744023078275,-500.0,0.00052602,120]
[357378370,1744023078284,-500.0,0.00052602,120]
[357378371,1744023078293,-1330.59,0.00052602,120]
[357378372,1744023078303,-500.0,0.00052602,120]
[357378373,1744023078312,-1474.81,0.00052602,120]
[357378374,1744023078322,-500.0,0.00052602,120]
[357378375,1744023078333,-1067.6,0.00052602,120]
[357378376,1744023078342,-572.58,0.00052602,120]
[357378377,1744023078353,-564.11,0.00052602,120]
[357378378,1744023078363,-500.0,0.00052602,120]
[357378379,1744023078373,-653.83,0.00052602,120]
[357378380,1744023078383,-922.8,0.00052602,120]
[357378381,1744023078393,-500.0,0.00052602,120]
[357378382,1744023078404,-500.0,0.00052602,120]
[357378383,1744023078414,-500.0,0.00052602,120]
[357378384,1744023078424,-500.0,0.00052602,120]
[357378385,1744023078434,-500.0,0.00052602,120]
[357378386,1744023078444,-500.0,0.00052602,120]
[357378387,1744023078455,-1074.53,0.00052602,120]
[357378388,1744023078465,-1701.55,0.00052602,120]
[357378389,1744023078475,-769.46,0.00052602,120]
[357378390,1744023078485,-641.56,0.00052602,120]
[357378391,1744023078494,-500.0,0.00052602,120]
[357378392,1744023078504,-500.0,0.00052602,120]
[357378393,1744023078513,-150.0,0.00052603,7]
[357378394,1744023078524,-150.0,0.00052636,7]
[357378395,1744023078534,-542.52468396,0.00052642,120]
[357378396,1744023078544,-150.0,0.00052653,7]
[357378397,1744023078554,-150.0,0.0005269,7]
[357378398,1744023078564,-1334.7,0.00052737,2]
[357378399,1744023078579,-570.92085301,0.00052757,49]
[357378400,1744023078590,-150.0,0.00052778,7]
[357378401,1744023078600,-150.0,0.00052797,7]
[357378402,1744023078610,-161.040718,0.00052798,120]
[357378403,1744023078619,-1000.0,0.000528,7]
[357378404,1744023078630,-150.0,0.00052832,7]
[357378405,1744023078639,-150.0,0.00052837,7]
[357378406,1744023078649,-151.77,0.00052838,120]
[357378407,1744023078659,-202.0,0.00052846,120]
[357378408,1744023078669,-202.0,0.00052856,120]
[357378409,1744023078679,-202.0,0.00052866,120]
[357378410,1744023078689,-598.37,0.00052875,120]
[357378411,1744023078699,-598.37,0.00052875,120]
[357378412,1744023078708,-1000.0,0.00052875,2]
[357378413,1744023078717,-1000.0,0.00052875,2]
[357378414,1744023078727,-1000.0,0.00052875,2]
[357378415,1744023078737,-300.0,0.00052875,30]
[357378416,1744023078747,-1000.0,0.00052875,2]
[357378417,1744023078757,-1000.0,0.00052875,2]
[357378418,1744023078766,-1000.0,0.00052875,2]
[357378419,1744023078776,-1000.0,0.00052875,2]
[357378420,1744023078786,-500.0,0.00052876,120]
[357378421,1744023078796,-500.0,0.00052876,120]
[357378422,1744023078809,-516.87,0.00052876,120]
[357378423,1744023078819,-500.0,0.00052876,120]
[357378424,1744023078828,-759.89,0.00052876,120]
[357378425,1744023078839,-500.0,0.00052876,120]
[357378426,1744023078849,-500.0,0.00052876,120]
[357378427,1744023078859,-500.0,0.00052876,120]
[357378428,1744023078869,-500.0,0.00052876,120]
[357378429,1744023078878,-503.66231406,0.00052876,120]
[357378430,1744023078888,-500.0,0.00052876,120]
[357378431,1744023078898,-500.0,0.00052876,120]
[357378432,1744023078907,-551.40596541,0.00052876,120]
[357378433,1744023078916,-535.24805073,0.00052876,120]
[357378434,1744023078925,-500.0,0.00052876,120]
[357378435,1744023078934,-816.06,0.00052876,120]
[357378436,1744023078943,-500.0,0.00052876,120]
[357378437,1744023078953,-500.0,0.00052876,120]
[357378438,1744023078962,-500.0,0.00052876,120]
[357378439,1744023078972,-512.90482228,0.00052876,120]
[357378440,1744023078982,-500.0,0.00052876,120]
[357378441,1744023078991,-525.42,0.00052876,120]
[357378442,1744023079000,-500.0,0.00052876,120]
[357378443,1744023079010,-500.0,0.00052876,120]
[357378444,1744023079020,-526.46,0.00052876,120]
[357378445,1744023079029,-500.0,0.00052876,120]
[357378446,1744023079039,-500.0,0.00052876,120]
[357378447,1744023079049,-541.64,0.00052876,120]
[357378448,1744023079059,-500.0,0.00052876,120]
[357378449,1744023079070,-500.0,0.00052876,120]
[357378450,1744023079083,-500.0,0.00052876,120]
[357378451,1744023079092,-500.0,0.00052876,30]
[357378452,1744023079102,-589.67007536,0.00052876,120]
[357378453,1744023079115,-500.0,0.00052876,120]
[357378454,1744023079126,-500.0,0.00052876,120]
[357378455,1744023079136,-542.57158822,0.00052876,120]
[357378456,1744023079147,-500.0,0.00052876,120]
[357378457,1744023079157,-500.0,0.00052876,120]
[357378458,1744023079166,-500.0,0.00052876,120]
[357378459,1744023079176,-500.0,0.00052876,120]
[357378460,1744023079187,-417.72378977,0.00052876,120]
[357378461,1744023079197,-500.0,0.00052876,120]
[357378462,1744023079207,-500.0,0.00052876,120]
[357378463,1744023079218,-376.9204375,0.00052876,120]
[357378464,1744023079228,-500.0,0.00052876,120]
[357378465,1744023079238,-500.0,0.00052876,120]
[357378466,1744023079249,-500.0,0.00052876,120]
[357378467,1744023079259,-500.0,0.00052876,120]
[357378468,1744023079269,-500.0,0.00052876,120]
[357378469,1744023079280,-500.0,0.00052876,120]
[357378470,1744023079289,-500.0,0.00052876,120]
[357378471,1744023079299,-500.0,0.00052876,120]
[357378472,1744023079309,-601.55,0.00052876,120]
[357378473,1744023079319,-500.0,0.00052876,120]
[357378474,1744023079330,-500.0,0.00052876,120]
[357378475,1744023079342,-500.0,0.00052876,120]
[357378476,1744023079352,-500.0,0.00052876,120]
[357378477,1744023079362,-500.0,0.00052876,120]
[357378478,1744023079372,-500.0,0.00052876,120]
[357378479,1744023079382,-500.0,0.00052876,120]
[357378480,1744023079392,-500.0,0.00052876,120]
[357378481,1744023079402,-993.97,0.00052876,120]
[357378482,1744023079411,-500.0,0.00052876,120]
[357378483,1744023079636,-500.0,0.00052876,120]
[357378484,1744023079646,-500.0,0.00052876,120]
[357378485,1744023079656,-512.9,0.00052876,120]
[357378486,1744023079665,-500.0,0.00052876,120]
[357378487,1744023079675,-500.0,0.00052876,120]
[357378488,1744023079685,-500.0,0.00052876,120]
[357378489,1744023079695,-563.69031537,0.00052876,120]
[357378490,1744023079705,-500.0,0.00052876,120]
[357378491,1744023079715,-500.0,0.00052876,120]
[357378492,1744023079725,-500.0,0.00052876,120]
[357378493,1744023079736,-500.0,0.00052876,120]
[357378494,1744023079746,-500.0,0.00052876,120]
[357378495,1744023079755,-597.92279194,0.00052876,120]
[357378496,1744023079765,-500.0,0.00052876,120]
[357378497,1744023079774,-500.0,0.00052876,120]
[357378498,1744023079784,-500.0,0.00052876,120]
[357378499,1744023079799,-500.0,0.00052876,120]
[357378500,1744023079808,-500.0,0.00052876,120]
[357378501,1744023079817,-500.0,0.00052876,120]
[357378502,1744023079827,-500.0,0.00052876,120]
[357378503,1744023079839,-509.15,0.00052876,120]
[357378504,1744023079849,-500.0,0.00052876,120]
[357378505,1744023079858,-500.0,0.00052876,120]
[357378506,1744023079869,-500.0,0.00052876,120]
[357378507,1744023079880,-500.0,0.00052876,120]
[357378508,1744023079889,-500.0,0.00052876,120]
[357378509,1744023079899,-500.0,0.00052876,120]
[357378510,1744023079909,-522.9614064,0.00052876,120]
[357378511,1744023079918,-500.0,0.00052876,120]
[357378512,1744023079928,-500.0,0.00052876,120]
[357378513,1744023079937,-500.0,0.00052876,120]
[357378514,1744023079947,-500.0,0.00052876,120]
[357378515,1744023079957,-500.0,0.00052876,120]
[357378516,1744023079966,-500.0,0.00052876,120]
[357378517,1744023079977,-500.0,0.00052876,120]
[357378518,1744023079986,-500.0,0.00052876,120]
[357378519,1744023079995,-500.0,0.00052876,120]
[357378520,1744023080006,-500.0,0.00052876,120]
[357378521,1744023080015,-500.0,0.00052876,120]
[357378522,1744023080025,-500.0,0.00052876,120]
[357378523,1744023080034,-500.0,0.00052876,120]
[357378524,1744023080043,-640.06,0.00052876,120]
[357378525,1744023080052,-500.0,0.00052876,120]
[357378526,1744023080061,-500.0,0.00052876,120]
[357378527,1744023080070,-1068.89,0.00052876,120]
[357378528,1744023080079,-620.58,0.00052876,120]
[357378529,1744023080090,-500.0,0.00052876,120]
[357378530,1744023080100,-500.0,0.00052876,120]
[357378531,1744023080109,-500.0,0.00052876,120]
[357378532,1744023080119,-500.0,0.00052876,120]
[357378533,1744023080128,-500.0,0.00052876,120]
[357378534,1744023080137,-1020.79,0.00052876,120]
[357378535,1744023080146,-500.0,0.00052876,120]
[357378536,1744023080155,-500.0,0.00052876,120]
[357378537,1744023080165,-500.0,0.00052876,120]
[357378538,1744023080174,-500.0,0.00052876,120]
[357378539,1744023080184,-500.0,0.00052876,120]
[357378540,1744023080193,-622.84,0.00052876,120]
[357378541,1744023080202,-500.0,0.00052876,120]
[357378542,1744023080212,-500.0,0.00052876,120]
[357378543,1744023080221,-500.0,0.00052876,120]
[357378544,1744023080230,-918.95,0.00052876,120]
[357378545,1744023080240,-244.42293082,0.00052876,120]
[357378546,1744023080249,-617.69,0.00052876,120]
[357378547,1744023080258,-500.0,0.00052876,120]
[357378548,1744023080268,-500.0,0.00052876,60]
[357378549,1744023080277,-500.0,0.00052876,120]
[357378550,1744023080286,-940.7,0.00052876,120]
[357378551,1744023080296,-183.27507319,0.00052876,120]
[357378552,1744023080305,-500.0,0.00052876,120]
[357378553,1744023080314,-500.0,0.00052876,120]
[357378554,1744023080323,-500.0,0.00052876,120]
[357378555,1744023080334,-823.2,0.00052876,120]
[357378556,1744023080343,-500.0,0.00052876,120]
[357378557,1744023080353,-500.0,0.00052876,120]
[357378558,1744023080363,-500.0,0.00052876,120]
[357378559,1744023080373,-500.0,0.00052876,120]
[357378560,1744023080382,-500.0,0.00052876,120]
[357378561,1744023080392,-500.0,0.00052876,120]
[357378562,1744023080401,-500.0,0.00052876,120]
[357378563,1744023080411,-500.0,0.00052876,120]
[357378564,1744023080420,-500.0,0.00052876,120]
[357378565,1744023080430,-500.0,0.00052876,120]
[357378566,1744023080439,-500.0,0.00052876,120]
[357378567,1744023080449,-500.0,0.00052876,120]
[357378568,1744023080459,-500.0,0.00052876,120]
[357378569,1744023080468,-500.0,0.00052876,120]
[357378570,1744023080478,-500.0,0.00052876,120]
[357378571,1744023080487,-500.0,0.00052876,120]
[357378572,1744023080496,-500.0,0.00052876,120]
[357378573,1744023080506,-500.0,0.00052876,120]
[357378574,1744023080514,-500.0,0.00052876,120]
[357378575,1744023080523,-500.0,0.00052876,120]
[357378576,1744023080533,-861.85,0.00052876,120]
[357378577,1744023080542,-1297.45,0.00052876,120]
[357378578,1744023080553,-746.67,0.00052876,120]
[357378579,1744023080562,-500.0,0.00052876,120]
[357378580,1744023080572,-500.0,0.00052876,120]
[357378581,1744023080582,-500.0,0.00052876,120]
[357378582,1744023080593,-500.0,0.00052876,120]
[357378583,1744023080603,-500.0,0.00052876,120]
[357378584,1744023080613,-988.01,0.00052876,120]
[357378585,1744023080623,-500.0,0.00052876,120]
[357378586,1744023080633,-555.94,0.00052876,120]
[357378587,1744023080644,-500.0,0.00052876,120]
[357378588,1744023080654,-520.55,0.00052876,120]
[357378589,1744023080664,-500.0,0.00052876,120]
[357378590,1744023080674,-500.0,0.00052876,120]
[357378591,1744023080684,-500.0,0.00052876,120]
[357378592,1744023080694,-511.33,0.00052876,120]
[357378593,1744023080703,-536.10194776,0.00052876,120]
[357378594,1744023080713,-500.0,0.00052876,120]
[357378595,1744023080723,-500.0,0.00052876,30]
[357378596,1744023080733,-501.03,0.00052876,120]
[357378597,1744023080743,-500.0,0.00052876,120]
[357378598,1744023080753,-501.07,0.00052876,120]
[357378599,1744023080762,-500.0,0.00052876,120]
[357378600,1744023080772,-500.0,0.00052876,120]
[357378601,1744023080782,-500.0,0.00052876,120]
[357378602,1744023080795,-500.0,0.00052876,120]
[357378603,1744023080809,-892.51,0.00052876,120]
[357378604,1744023080818,-500.0,0.00052876,120]
[357378605,1744023080828,-500.0,0.00052876,120]
[357378606,1744023080842,-500.0,0.00052876,120]
[357378607,1744023080851,-500.0,0.00052876,120]
[357378608,1744023080861,-500.0,0.00052876,120]
[357378609,1744023080870,-500.0,0.00052876,120]
[357378610,1744023080880,-500.0,0.00052876,120]
[357378611,1744023080890,-500.0,0.00052876,120]
[357378612,1744023080901,-500.0,0.00052876,120]
[357378613,1744023080910,-660.54,0.00052876,120]
[357378614,1744023080920,-500.0,0.00052876,120]
[357378615,1744023080930,-500.0,0.00052876,120]
[357378616,1744023080940,-500.0,0.00052876,120]
[357378617,1744023080950,-680.44,0.00052876,120]
[357378618,1744023080959,-500.0,0.00052876,120]
[357378619,1744023080968,-500.0,0.00052876,120]
[357378620,1744023080977,-500.0,0.00052876,120]
[357378621,1744023080986,-500.0,0.00052876,120]
[357378622,1744023080996,-792.33,0.00052876,120]
[357378623,1744023081005,-594.75,0.00052876,120]
[357378624,1744023081017,-500.0,0.00052876,30]
[357378625,1744023081027,-546.49,0.00052876,120]
[357378626,1744023081037,-868.93,0.00052876,120]
[357378627,1744023081047,-500.0,0.00052876,120]
[357378628,1744023081056,-500.0,0.00052876,120]
[357378629,1744023081065,-500.0,0.00052876,120]
[357378630,1744023081074,-513.73,0.00052876,120]
[357378631,1744023081083,-975.08,0.00052876,120]
[357378632,1744023081094,-502.52825717,0.00052876,7]
[357378633,1744023081103,-500.0,0.00052876,120]
[357378634,1744023081112,-500.0,0.00052876,120]
[357378635,1744023081121,-500.0,0.00052876,120]
[357378636,1744023081130,-578.07,0.00052876,120]
[357378637,1744023081139,-500.0,0.00052876,120]
[357378638,1744023081148,-795.47,0.00052876,120]
[357378639,1744023081156,-565.93,0.00052876,120]
[357378640,1744023081165,-500.0,0.00052876,120]
[357378641,1744023081174,-941.38,0.00052876,120]
[357378642,1744023081183,-500.0,0.00052876,120]